Cogmind - Beta 9.2 @@@ ROGUE MODE // 2020.03.29 @ 19:24:18 Player: Tone Result: Self-destructed Performance ------------- Evolutions (1) 500 Regions Visited (5) 1000 Robots Destroyed (66) 330 Value Destroyed (1271) 1271 Prototype IDs (27) 540 Alien Tech Used (0) 0 Bonus (350) 350 TOTAL SCORE: 3991 Bonus ------- High Alert Combat Kills 50 Aligned with FarCom 300 Cogmind --------- Core Integrity 282/400 Matter 290/300 Energy 265/265 System Corruption 0% Temperature Cool (0) Movement Rolling (120) Ox4 Location -9/Exiles Parts ------- > --- POWER (1) -------- Improved Ion Engine > --- PROPULSION (3) --- Light Treads Light Treads Wheel > --- UTILITY (3) ------ Large Storage Unit Large Storage Unit > --- WEAPON (2) ------- Advanced Beam Cannon Advanced Beam Cannon > --- INVENTORY (16) --- Light Ion Engine Light Treads Light Treads Light Treads Light Treads Light Treads Improved Flight Unit Improved Flight Unit Improved Heat Sink Light Armor Plating Light Armor Plating Heavy EM Pulse Gun Heavy EM Pulse Gun Advanced Beam Cannon Mini Grenade Launcher Heavy Hammer Peak State ------------ > --- POWER ------------ Improved Ion Engine > --- PROPULSION ------- Light Treads Light Treads Wheel > --- UTILITY ---------- Large Storage Unit Large Storage Unit Modified TNC > --- WEAPON ----------- Advanced Beam Cannon Advanced Beam Cannon > --- INVENTORY -------- Light Ion Engine Light Treads Light Treads Light Treads Light Treads Light Treads Improved Flight Unit Improved Flight Unit Improved Heat Sink Light Armor Plating Light Armor Plating Heavy EM Pulse Gun Heavy EM Pulse Gun Advanced Beam Cannon Mini Grenade Launcher Heavy Hammer [Rating: 21] Favorites ----------- Power Improved Ion Engine Engine Improved Ion Engine Propulsion Light Treads Treads Light Treads Leg Aluminum Leg Wheel Wheel Utility Large Storage Unit Device Improved Heat Sink Storage Large Storage Unit Processor Modified TNC Protection Light Armor Plating Weapon Advanced Beam Cannon Energy Gun Beamcaster Energy Cannon Advanced Beam Cannon Ballistic Gun Light Assault Rifle Ballistic Cannon Light Cannon Special Weapon Welding Torch Build | -11 -10 -10 -9 -9 -9 ------- Run | Scr Mat Min Mat Min Exi Slots Evolved 2 | . . . 2 . . Power . | . . . . . . Propulsion 1 | . . . 1 . . Utility 1 | . . . 1 . . Weapon . | . . . . . . Parts Attached 59 | 4 10 8 36 . 1 Power 3 | . 1 1 1 . . Engine 3 | . 1 1 1 . . Core . | . . . . . . Reactor . | . . . . . . Propulsion 30 | 3 2 4 21 . . Treads 18 | 2 1 2 13 . . Leg . | . . . . . . Wheel 12 | 1 1 2 8 . . Hover . | . . . . . . Flight . | . . . . . . Utility 11 | 1 2 . 7 . 1 Device 3 | . . . 3 . . Storage 5 | 1 2 . 2 . . Processor 1 | . . . . . 1 Hackware . | . . . . . . Protection 2 | . . . 2 . . Artifact . | . . . . . . Weapon 15 | . 5 3 7 . . Energy Gun 1 | . . 1 . . . Energy Cannon 5 | . . . 5 . . Ballistic Gun 6 | . 2 2 2 . . Ballistic Cannon 2 | . 2 . . . . Launcher . | . . . . . . Special Weapon 1 | . 1 . . . . Impact Weapon . | . . . . . . Slashing Weapon . | . . . . . . Piercing Weapon . | . . . . . . Special Melee Weapon . | . . . . . . Unidentified Prototypes 2 | . . . 2 . . Parts Lost 6 | . 2 3 1 . . Power 1 | . 1 . . . . Propulsion 1 | . . 1 . . . Utility . | . . . . . . Weapon 4 | . 1 2 1 . . Highest Loss Streak 2 | . 1 2 1 . . Average Slot Usage (%) 98 | . 95 98 99 100 99 Engine 11 | . 9 14 11 11 11 Treads 19 | . 18 14 23 22 22 Wheel 10 | . 9 13 9 11 11 Device 2 | . . . 5 . . Storage 26 | . 28 28 24 33 32 Protection 1 | . . . 2 . . Energy Gun 1 | . . . 3 . . Energy Cannon 7 | . . . 14 22 22 Ballistic Gun 10 | . 17 18 3 . . Ballistic Cannon 4 | . 9 8 . . . Naked Turns . | . . . . . . Heaviest Build 63 | 15 40 43 63 63 63 Greatest Support 60 | 20 40 20 60 10 10 Greatest Overweight (x) 6 | 1 3 4 6 6 6 Average Overweight (x) 3 | . 1 3 4 6 5 Largest Inventory Capacity 22 | 8 16 16 22 22 22 Average Capacity 16 | 6 14 16 17 22 21 Most Carried 20 | 6 16 16 20 19 19 Average Carried 15 | 6 12 15 16 19 18 Final Capacity 22 | 8 16 16 22 22 16 Final Carried 19 | 6 14 16 19 19 16 Class Distribution -------------------- 52% | Mutant 32% | Scavenger-Mutant 15% | Hauler-Mutant Dominant Class ---------------- Mutant | -10/Materials Mutant | -10/Mines Scavenger-Mutant | -9/Materials Hauler-Mutant | -9/Mines Hauler-Mutant | -9/Exiles Resources | -11 -10 -10 -9 -9 -9 ----------- Run | Scr Mat Min Mat Min Exi Matter Collected 1158 | 252 216 238 452 . . Remotely . | . . . . . . Salvage Created 1969 | 61 371 166 1371 . . Parts 147 | 1 30 21 95 . . Haulers Intercepted 8 | . 2 . 6 . . Recyclers Shooed 2 | . 1 . 1 . . Parts Field Recycled . | . . . . . . Retrieved Matter . | . . . . . . Parts Self-Destructed . | . . . . . . Prevented . | . . . . . . Kills | -11 -10 -10 -9 -9 -9 ------- Run | Scr Mat Min Mat Min Exi Combat Hostiles Destroyed 46 | . 9 9 28 . . Guns 21 | . 5 7 9 . . Cannons 25 | . 4 2 19 . . Classes Destroyed 11 | 1 5 2 3 . . Worker 1 | . . 1 . . . Builder 3 | . 1 . 2 . . Tunneler 1 | . . 1 . . . Hauler 8 | . 2 . 6 . . Recycler 1 | 1 . . . . . Operator 2 | . 1 . 1 . . Watcher 4 | . . . 4 . . Swarmer 24 | . 2 9 13 . . Grunt 14 | . 7 . 7 . . Brawler 1 | . . . 1 . . Sentry 7 | . . . 7 . . Best Kill Streak 10 | 1 4 3 10 . . Combat Bots Only 8 | . 3 3 8 . . Max Kills in Single Turn 2 | 1 1 1 2 . . Gunslinging . | . . . . . . Exploded . | . . . . . . Melee . | . . . . . . Uniques/NPCs Destroyed . | . . . . . . Combat | -11 -10 -10 -9 -9 -9 -------- Run | Scr Mat Min Mat Min Exi Damage Taken 1588 | . 629 276 683 . . Core 246 | . 94 34 118 . . Absorbed by Shields . | . . . . . . Core Remaining (%) 74 | 100 . 48 . . . Volleys Fired 155 | 4 48 29 74 . . Largest 2 | 2 2 2 2 . . Hottest 136 | 70 55 55 136 . . Shots Fired 297 | 8 96 46 147 . . Gun 149 | 8 62 37 42 . . Cannon 148 | . 34 9 105 . . Launcher . | . . . . . . Special . | . . . . . . Kinetic 167 | 4 96 46 21 . . Thermal 130 | 4 . . 126 . . Explosive . | . . . . . . Electromagnetic . | . . . . . . Robot Hit Streak 14 | 5 7 5 14 . . Robot Miss Streak 4 | 1 4 2 3 . . Penetration Max . | . . . . . . Secondary Targets 2 | . . 1 1 . . Max Gunslinging Chain 1 | . . 1 1 . . Shots Hit Robots 185 | 6 56 28 95 . . Core Hits 82 | 2 23 13 44 . . Critical Hits 7 | . . . 7 . . Critical Kills 4 | . . . 4 . . Critical Parts Destroyed 3 | . . . 3 . . Melee Attacks . | . . . . . . Impact . | . . . . . . Slashing . | . . . . . . Piercing . | . . . . . . Sneak Attacks . | . . . . . . Combat Hostiles . | . . . . . . Follow-up Attacks . | . . . . . . Damage Inflicted 3136 | 69 820 336 1911 . . Guns 1092 | 69 396 222 405 . . Cannons 2023 | . 423 108 1492 . . Explosions . | . . . . . . Melee . | . . . . . . Ramming 21 | . 1 6 14 . . Kinetic 1294 | 44 819 330 101 . . Thermal 1821 | 25 . . 1796 . . Explosive . | . . . . . . Electromagnetic . | . . . . . . Impact . | . . . . . . Slashing . | . . . . . . Piercing . | . . . . . . Highest Corruption 1 | . 1 1 . . . Average Corruption 1 | . 1 1 . . . Corruption Purged . | . . . . . . Effects 5 | . 4 1 . . . Message Errors 1 | . 1 . . . . Energy Discharges 2 | . 1 1 . . . Data Loss (minor) 1 | . 1 . . . . Targeting Errors 1 | . 1 . . . . Overload Shots . | . . . . . . Overflow Damage 16 | . . . 16 . . Projectiles 16 | . . . 16 . . Explosions . | . . . . . . Melee . | . . . . . . Knockbacks 6 | . 5 1 . . . Impact . | . . . . . . Kinetic 6 | . 5 1 . . . Secondary . | . . . . . . Self-Inflicted Damage . | . . . . . . Shots . | . . . . . . Rammed 5 | . 1 2 2 . . Targets Rammed 5 | . 1 2 2 . . Kicked . | . . . . . . Crushed . | . . . . . . Highest Temperature 235 | 36 112 . 235 . . Average Temperature 63 | 19 29 . 73 . . Received Heat Transfer 471 | . 336 . 135 . . Siege Activations . | . . . . . . Robots Corrupted . | . . . . . . Combat Hostiles . | . . . . . . Parts Fried . | . . . . . . Impact Corruptions . | . . . . . . Robots Melted . | . . . . . . Combat Hostiles . | . . . . . . Parts Melted 8 | . . . 8 . . Heat Transferred 3182 | 74 . . 3108 . . Parts Sabotaged . | . . . . . . Parts Stolen . | . . . . . . Parts Stripped . | . . . . . . Power Chain Reactions . | . . . . . . Missiles Intercepted . | . . . . . . Alert | -11 -10 -10 -9 -9 -9 ------- Run | Scr Mat Min Mat Min Exi Peak Influence 717 | 5 212 144 717 279 . Average Influence 209 | 3 89 116 339 279 . Maximum Alert Level 3 | . 1 . 3 1 . Low Security (%) 66 | 100 94 100 30 . . Level 1 22 | . 5 . 44 100 . Level 2 10 | . . . 23 . . Level 3 . | . . . 1 . . Level 4 . | . . . . . . Level 5 . | . . . . . . High Security . | . . . . . . Max Security . | . . . . . . Squads Dispatched 5 | . 3 . 2 . . Investigation 2 | . 2 . . . . Extermination . | . . . . . . Reinforcement 3 | . 1 . 2 . . Assault . | . . . . . . Garrison . | . . . . . . Intercept . | . . . . . . Construction Impeded . | . . . . . . Haulers Reinforced . | . . . . . . Stealth | -11 -10 -10 -9 -9 -9 --------- Run | Scr Mat Min Mat Min Exi Distress Signals 3 | . 2 . 1 . . Communications Jammed . | . . . . . . Distress Signals . | . . . . . . Times Spotted 70 | . 19 12 39 . . Peak Tracking Total 6 | . 5 3 6 . . Tactical Retreats 5 | . 3 2 . . . Traps | -11 -10 -10 -9 -9 -9 ------- Run | Scr Mat Min Mat Min Exi Traps Triggered 2 | . 1 . 1 . . Indirectly . | . . . . . . Trap Hack Attempts . | . . . . . . Triggered . | . . . . . . Disarmed . | . . . . . . Reprogrammed . | . . . . . . Reused . | . . . . . . Traps Extracted . | . . . . . . Installed . | . . . . . . Triggered . | . . . . . . Machines | -11 -10 -10 -9 -9 -9 ---------- Run | Scr Mat Min Mat Min Exi Machines Disabled 5 | . 1 . 4 . . Max in Single Turn 1 | . 1 . 1 . . Machines Sabotaged . | . . . . . . Garrisons Compromised . | . . . . . . Overloaded Fab Kills . | . . . . . . Fab Network Shutdowns . | . . . . . . Hacking | -11 -10 -10 -9 -9 -9 --------- Run | Scr Mat Min Mat Min Exi Machines Accessed 10 | . 6 . 3 . 1 Terminals 7 | . 5 . 2 . . Fabricators . | . . . . . . Repair Stations . | . . . . . . Recycling Units 2 | . 1 . 1 . . Scanalyzers . | . . . . . . Garrison Access . | . . . . . . Total Hacks 31 | . 22 . 8 . 1 Successful 18 | . 13 . 4 . 1 Failed 12 | . 8 . 4 . . Catastrophic . | . . . . . . Database Lockouts 1 | . 1 . . . . Manual 24 | . 16 . 7 . 1 Terminals 27 | . 21 . 6 . . Fabricators . | . . . . . . Repair Stations . | . . . . . . Recycling Units 3 | . 1 . 2 . . Scanalyzers . | . . . . . . Garrison Access . | . . . . . . Terminal Hacks 9 | . 6 . 2 . 1 Robot Analysis 2 | . 2 . . . . Prototype ID Bank 2 | . 1 . 1 . . Branch Access Points 1 | . . . 1 . . Terminal Index 1 | . 1 . . . . Locate Traps 1 | . 1 . . . . Hauler Manifests 1 | . 1 . . . . EX-Prototype ID Bank 1 | . . . . . 1 Fabricator Hacks . | . . . . . . Repair Station Hacks . | . . . . . . Recycling Unit Hacks . | . . . . . . Scanalyzer . | . . . . . . Garrison Access Hacks . | . . . . . . Unauthorized Hacks 22 | . 16 . 6 . . Terminals 8 | . 6 . 2 . . Track 3 | . 3 . . . . Botnet 3 | . 2 . 1 . . Operators 2 | . 1 . 1 . . Fabricators . | . . . . . . Repair Stations . | . . . . . . Recycling Units 1 | . 1 . . . . Tunnel 1 | . 1 . . . . Scanalyzers . | . . . . . . Garrison Access . | . . . . . . Data Cores Recovered 1 | . . . 1 . . Used . | . . . . . . Hacking Detections 6 | . 4 . 2 . . Full Trace Events . | . . . . . . Feedback Events . | . . . . . . Feedback Blocked . | . . . . . . Robot Schematics Acquired . | . . . . . . Robots Built . | . . . . . . Matter . | . . . . . . Time . | . . . . . . Total Robot Build Rating . | . . . . . . Part Schematics Acquired . | . . . . . . Parts Built . | . . . . . . Matter . | . . . . . . Time . | . . . . . . Total Part Build Rating . | . . . . . . Parts Repaired . | . . . . . . Time . | . . . . . . Parts Recycled . | . . . . . . Recycled Matter . | . . . . . . Retrieved Matter . | . . . . . . Retrieved Components . | . . . . . . Parts Scanalyzed . | . . . . . . Part Schematics Acquired . | . . . . . . Parts Damaged . | . . . . . . Bothacking | -11 -10 -10 -9 -9 -9 ------------ Run | Scr Mat Min Mat Min Exi Used RIF Installer . | . . . . . . Robots Hacked . | . . . . . . Non-combat . | . . . . . . Combat . | . . . . . . Robot Hacks Applied . | . . . . . . Relay Couplers Released . | . . . . . . Robots Rewired . | . . . . . . Allies Hacked . | . . . . . . Hacks Repelled . | . . . . . . Allies | -11 -10 -10 -9 -9 -9 -------- Run | Scr Mat Min Mat Min Exi Total Allies . | . . . . . . Largest Group . | . . . . . . Highest-Rated Group . | . . . . . . Highest-Rated Ally . | . . . . . . Total Orders . | . . . . . . Ally Attacks . | . . . . . . Total Damage . | . . . . . . Kills . | . . . . . . Allies Corrupted . | . . . . . . Allies Melted . | . . . . . . Intel | -11 -10 -10 -9 -9 -9 ------- Run | Scr Mat Min Mat Min Exi Robot Analysis Total 2 | . 2 . . . . Derelict Logs Recovered 1 | . . 1 . . . Drone Launches . | . . . . . . Drone Recoveries . | . . . . . . Exploration | -11 -10 -10 -9 -9 -9 ------------- Run | Scr Mat Min Mat Min Exi Turns Passed 2799 | 32 691 703 1163 42 168 Spaces Moved 1709 | 14 390 525 631 31 118 Core . | . . . . . . Treads 145 | . 98 2 45 . . Legs 5 | 5 . . . . . Wheels 1559 | 9 292 523 586 31 118 Hover . | . . . . . . Flight . | . . . . . . Fastest Speed 90 | 90 90 110 120 140 120 Average Speed 122 | 100 118 115 127 140 139 Slowest Speed 200 | 120 160 200 180 140 140 Overloaded Moves . | . . . . . . Propulsion Burnouts . | . . . . . . Robots Hopped . | . . . . . . Cave-ins Triggered . | . . . . . . Exploration Rate (%) 46 | 3 56 99 68 12 41 Regions Visited 5 Branch Regions 3 Pre-discovered Areas 1 | . 1 . . . . Known Exits Taken 1 | . . . 1 . . Unknown Exits Taken 4 | 1 1 1 . 1 . Scrap Searched 2 | . . 2 . . . Spaces Dug . | . . . . . . Terrain Destroyed . | . . . . . . Melee . | . . . . . . Projectile . | . . . . . . AOE . | . . . . . . Actions | -11 -10 -10 -9 -9 -9 --------- Run | Scr Mat Min Mat Min Exi Total 2123 | 21 527 575 849 30 121 Wait 122 | . 64 5 53 . . Move 1704 | 13 389 524 630 30 118 Hop . | . . . . . . Pick Up 37 | . 11 3 23 . . Fast Attach 13 | 1 1 3 7 . 1 Attach 9 | . 3 1 5 . . Detach 3 | . . 1 1 . 1 Swap 37 | 3 6 4 24 . . Drop 38 | . 4 3 30 . 1 Fire 155 | 4 48 29 74 . . Melee . | . . . . . . Ram . | . . . . . . Kick . | . . . . . . Crush 5 | . 1 2 2 . . Escape Stasis . | . . . . . . Rewire . | . . . . . . Trap . | . . . . . . Miscellaneous . | . . . . . . Route ------- -11/Scrapyard -10/Materials (discovered 2 exits: *Mat / [*Min]) -10/Mines (discovered 2 exits: *Mat x2) -9/Materials (discovered 5 exits: [*Mat x2] / *Min x2 / *Sto) -9/Mines -9/Exiles (discovered 1 exit: [*Min]) History --------- Turn | Location | Event 13 | -11/Scrapyard | Discovered new exit (range 3) 33 | -11/Scrapyard | Entered Materials 298 | -10/Materials | Discovered new exit (range 6) 329 | -10/Materials | Build established: Mutant 382 | -10/Materials | Discovered new exit (range 8) 618 | -10/Materials | Central database locked down 724 | -10/Materials | Entered Mines 735 | -10/Mines | Learned Materials terminal intel 759 | -10/Mines | Met a Derelict bent on vengeance 846 | -10/Mines | Discovered new exit (range 7) 1023 | -10/Mines | Found a hidden stash of uninstalled traps 1228 | -10/Mines | Core integrity fell below 50% 1391 | -10/Mines | Discovered new exit (range 11) 1427 | -10/Mines | Entered Materials 1427 | -9/Materials | Evolved 2 slots: Propulsion x1, Utility x1 1428 | -9/Materials | Loaded intel: 10 terminal locations 1428 | -9/Materials | Discovered new exit (range 8) 1515 | -9/Materials | Discovered new exit (range 15) 1767 | -9/Materials | Build established: Scavenger-Mutant 2117 | -9/Materials | Discovered new exit (range 8) 2388 | -9/Materials | Destroyed 8 combat bots 2484 | -9/Materials | Discovered new exit (range 15) 2537 | -9/Materials | Identified exit to Mines 2537 | -9/Materials | Identified exit to Storage 2590 | -9/Materials | Entered Mines 2627 | -9/Mines | Deemed a non-threat by the Exiles lab entrance 2627 | -9/Mines | Discovered new exit (range 5) 2632 | -9/Mines | Entered Exiles 2653 | -9/Exiles | Discovered new exit (range 15) 2667 | -9/Exiles | Met 8R-AWN 2672 | -9/Exiles | Build established: Hauler-Mutant 2691 | -9/Exiles | Met EX-HEX 2729 | -9/Exiles | Met EX-BIN 2744 | -9/Exiles | Aligned with FarCom system 2746 | -9/Exiles | Given EX-Vault access code 2785 | -9/Exiles | Opened EX-Vault 2795 | -9/Exiles | Found Modified TNC 2800 | -9/Exiles | Self-destructed Last Messages --------------- Cloak of Protection Skeleton Box Trap Reconfigurator Supersonic Drone Bay PSU Rigger Chronowheel AWS/Thermal Latent Energy Streamer Gui. Plasma Cannon Firepult YOLO Cannon AWS/Gauss XL Autogun Array AWS/Autocannon Field Lobotomy Kit Longsword +1 Deploy-a-Sentry 02795_ Dropped Lrg. Storage Unit. 02795_ Acquired Modified TNC. 02797_ Discarded Modified TNC. Map ----- +----------------------------------------------------+ | | | | | | | | | | | | | | | | | | | | | | | | | | | | | | | | | | | | | | | | | | | | | ?????????????????????#########???????????????????? | | ?????????????????????# [! ] #???????????????????? | | ?????????????????????# [ ! #???????????????????? | | ?????????????????????# @ = #???????????????????? | | ?????????????????????# X#???????????????????? | | ?????????????????????## ##???????????????????? | | ?????????????????????#X #????????????????????? | | ?????????????????????## #????????????????????? | | ??????????????????????# #????????????????????? | | ??????????????????????# #???###??????????????? | | ??????????????????????# #??"""""?????????????? | | ??????????????????????# ## """?????????????? | | ??????????????????????# X""?????????????? | | ??????????????????????# ## """?????????????? | | ????????????????####??# #??"""""?????????????? | | ????????????????"""""?# #???###??????????????? | | ???????????????"""" ## #????????????????????? | | ??????????????#""X" #????????????????????? | | ??????????????#" #????????????????????? | | ??????????????#" ## #????????????????????? | | ??????????????#""""""?# #?#########??????????? | | ???????????????#"###??# #?#"""""""#??????????? | | ??????????????????????# #?#"""""""#??????????? | | ??????????????????????# #?#"""""""#??????????? | | ?????????????????????## ###"" """"#??????????? | | ?????????????????????#" """"#??????????? | | ?????????????????????#" """#??????????? | | ?????????????????????#" """#??????????? | +----------------------------------------------------+ Best States ------------- Heat Dissipation 42 Energy Generation 12 Energy Capacity 265 Matter Stores 300 Matter Capacity 300 Sight Range 16 Terrain Scan Density 10 Armor Coverage 150 Evasion (%) 42 Recoil Reduction 3 Item Schematics ----------------- None Robot Schematics ------------------ None Fabricated ------------ Nothing Alien Tech Used ----------------- None Achievements -------------- None Challenges ------------ None Game ------ Seed MicroReclamationBoomstick Manual? 0 Play Time 00:31:29 Cumulative 296.0 hours Start 2020.03.29 @ 18:51:55 End 2020.03.29 @ 19:24:18 Sessions 1 Manual Loads 0 Difficulty Rogue Special Mode None Game No. 38 Rogue 38 Adventurer 0 Explorer 0 Win Type - Total 15 Types 10/2/0/0/2/0/1 Lore% 83 Gallery% 83 Achievement% 74 Wizard Run 0 Options --------- ASCII 0 Keyboard 0 Movement Numpad Keybinds 0 Fullscreen 2 Font 18/Terminus Map View 76x50 Tactical HUD 1 Map Filters NONE Filters NONE Steam 1 RUN: 72916a1b-e850-45a7-bd5d-af4622295d6e